Cogmind - Beta 15 @@@ ROGUE MODE // 2025.09.06 @ 11:45:48 Player: Spoodle Result: Destroyed by G-67 Veteran with Field Laser Performance ------------- Evolutions (6) 3000 Regions Visited (17) 3400 Robots Destroyed (247) 1235 Value Destroyed (7462) 7462 Prototype IDs (48) 960 Alien Tech Used (0) 0 Bonus (3741) 3741 TOTAL SCORE: 19798 Bonus ------- High Alert Combat Kills 780 Follower Combat Kills 1333 Registered with UFD 300 Met Optimus in HQ 500 MAIN.C Attacked Warlord 500 Warlord Defense Kills 454 Friendly Fire -126 Cogmind --------- Core Integrity 0/1150 Matter 277/300 Energy 170/170 System Corruption 4% Temperature Cool (21) Movement Rolling (80) Ox1 Location -4/Factory Parts ------- > --- POWER (2) -------- Light Antimatter Reactor > --- PROPULSION (6) --- Overtuned Huge Scrapsphere > --- UTILITY (9) ------ Scrap Suit Scrap Suit Improved Targeting Computer > --- WEAPON (2) ------- Coil Gun > --- INVENTORY (5) ---- Improved Sensor Array Peak State ------------ > --- POWER ------------ Micro Nuclear Core Micro Antimatter Reactor > --- PROPULSION ------- Improved Airjet Antigrav System Antigrav System Gyrokinetic Inverter Linear Gravjet Combat Gravmag System > --- UTILITY ---------- Advanced Cooling System Large Storage Unit Improved Signal Interpreter Experimental Core Analyzer Advanced Reaction Control System Experimental Utility Shielding Makeshift Ablative Armor Hacking Suite Improved Hacking Suite > --- WEAPON ----------- Vortex Rail Vortex Rail > --- INVENTORY -------- Backup Power III Combat Gravmag System Combat Gravmag System Improved Sensor Array Layered Medium Armor Plating Makeshift Ablative Armor Advanced System Shield Advanced System Shield Vortex Cannon Overtuned Coil Gun Long-range Missile Launcher Thermoblaster [Rating: 118] Favorites ----------- Power Cooled Ion Engine Engine Cooled Ion Engine Power Core Micro Nuclear Core Reactor Micro Antimatter Reactor Propulsion Armored Treads Treads Armored Treads Leg Aluminum Leg Wheel Overtuned Huge Scrapsphere Hover Unit Improved Airjet Flight Unit Improved VTOL Module Utility Hacking Suite Device Improved Heat Sink Storage Large Storage Unit Processor Machine Analyzer Hackware Hacking Suite Protection Improved Medium Armor Plating Weapon Beam Rifle Energy Gun Beam Rifle Energy Cannon Cooled Particle Cannon Ballistic Gun Overtuned Coil Gun Ballistic Cannon Mini Assault Cannon Launcher Long-range Missile Launcher Special Weapon Mining Laser Impact Weapon Makeshift Hammer Slashing Weapon Companion Sword Piercing Weapon Plasma Lance Special Melee Weapon Datajack Build | -11 -10 -10 -9 -9 -9 -8 -8 -7 -7 -7 -7 -5 -5 -5 -5 -4 -4 ------- Run | Yrd Mat Min Mat Min Exi Min Mat Fac Sto Rec Scr Fac Upp Upp War Pro Fac Slots Evolved 12 | . . . 2 . . . 2 2 . . . 4 . . . . 2 Power 1 | . . . . . . . . . . . . 1 . . . . . Propulsion 4 | . . . 1 . . . . 1 . . . 1 . . . . 1 Utility 7 | . . . 1 . . . 2 1 . . . 2 . . . . 1 Weapon . | . . . . . . . . . . . . . . . . . . Parts Attached 177 | 7 16 . 28 1 3 . 11 16 14 1 2 29 . . 9 3 37 Power 18 | 1 3 . 3 . . . . . 1 . 1 3 . . . . 6 Engine 9 | 1 3 . 3 . . . . . . . 1 . . . . . 1 Core 5 | . . . . . . . . . 1 . . 3 . . . . 1 Reactor 4 | . . . . . . . . . . . . . . . . . 4 Propulsion 49 | 2 3 . 9 . 1 . 5 5 4 1 . 7 . . 1 1 10 Treads 23 | . 2 . 8 . 1 . 4 5 2 1 . . . . . . . Leg 4 | 2 1 . . . . . . . . . . . . . . 1 . Wheel 2 | . . . . . . . . . . . . . . . . . 2 Hover 18 | . . . . . . . . . 2 . . 7 . . 1 . 8 Flight 2 | . . . 1 . . . 1 . . . . . . . . . . Utility 62 | 2 6 . 7 . 1 . 2 5 3 . . 15 . . 5 1 15 Device 23 | 1 3 . 2 . . . 1 1 2 . . 5 . . 2 . 6 Storage 7 | 1 1 . . . 1 . . . . . . 3 . . 1 . . Processor 5 | . . . . . . . . 1 . . . 1 . . 1 . 2 Hackware 9 | . 1 . . . . . 1 1 . . . 1 . . . . 5 Protection 18 | . 1 . 5 . . . . 2 1 . . 5 . . 1 1 2 Artifact . | . . . . . . . . . . . . . . . . . . Weapon 48 | 2 4 . 9 1 1 . 4 6 6 . 1 4 . . 3 1 6 Energy Gun 16 | 1 3 . 5 . . . 2 . 2 . . 1 . . 1 . 1 Energy Cannon 9 | . . . 3 . . . 1 2 1 . . 1 . . 1 . . Ballistic Gun 8 | 1 . . . . . . . 1 1 . . 1 . . 1 . 3 Ballistic Cannon 2 | . . . . . . . . 2 . . . . . . . . . Launcher 7 | . . . 1 . . . 1 1 2 . . 1 . . . 1 . Special Weapon 1 | . 1 . . . . . . . . . . . . . . . . Impact Weapon 1 | . . . . 1 . . . . . . . . . . . . . Slashing Weapon 1 | . . . . . . . . . . . 1 . . . . . . Piercing Weapon 2 | . . . . . . . . . . . . . . . . . 2 Special Melee Weapon 1 | . . . . . 1 . . . . . . . . . . . . Unidentified Prototypes 25 | . . . 3 . . . 2 1 6 . 1 4 . . 5 . 3 Parts Lost 33 | . 4 . 2 . . . . . . . . 4 . . 1 . 22 Power 10 | . 3 . . . . . . . . . . 2 . . . . 5 Propulsion 10 | . 1 . . . . . . . . . . . . . . . 9 Utility 8 | . . . 2 . . . . . . . . 2 . . . . 4 Weapon 5 | . . . . . . . . . . . . . . . 1 . 4 Highest Loss Streak 9 | . 1 . 1 . . . . . . . . 2 . . 1 . 9 To Critical Strikes . | . . . . . . . . . . . . . . . . . . Average Backups 15 | 4 10 14 14 15 15 15 19 19 19 20 19 10 15 15 14 15 13 Power 1 | . . 1 . 1 1 1 1 1 1 1 2 . . . . 1 1 Propulsion 4 | 1 1 2 5 7 7 7 7 7 8 7 7 2 3 3 2 1 . Utility 6 | . 4 6 3 3 3 4 5 6 7 9 8 5 8 8 7 7 6 Weapon 3 | 1 3 4 3 3 3 3 3 5 2 2 1 2 4 4 4 5 5 Tool/Special . | . . . . . . . . . . . . . . . . . . Unused Backups 34 | . 4 . 6 . . . 3 3 4 1 3 3 . . 1 . 6 Power 2 | . . . 1 . . . 1 . . . . . . . . . . Propulsion 11 | . . . 3 . . . 2 1 4 . . 1 . . . . . Utility 15 | . 1 . 2 . . . . 2 . 1 3 2 . . . . 4 Weapon 6 | . 3 . . . . . . . . . . . . . 1 . 2 Tool/Special . | . . . . . . . . . . . . . . . . . . Average Slot Usage (%) 96 | . 92 100 99 100 100 100 98 99 99 100 99 90 88 88 87 88 88 Engine 6 | . 7 14 11 11 11 11 9 7 3 . 3 4 5 5 5 5 2 Core 2 | . . . . . . . . . 3 7 3 5 5 5 5 5 3 Treads 21 | . 17 28 32 33 33 33 27 30 29 30 30 . . . . . . Leg 1 | . 10 . . . . . . . . . . . . . . . . Hover 6 | . . . . . . . . . . . . 25 23 23 23 22 25 Device 10 | . 9 14 11 11 11 11 17 7 7 7 7 8 11 11 15 16 8 Storage 8 | . 14 14 11 11 11 11 9 7 7 7 7 5 5 5 5 5 4 Processor 4 | . . . . . . . . 6 7 7 7 4 5 5 7 11 10 Hackware 9 | . 3 . . . . . 8 14 15 15 15 16 17 17 9 5 14 Protection 6 | . 1 . 10 11 11 11 9 6 6 7 7 5 . . . . 4 Energy Gun 10 | . 24 21 19 20 12 22 16 2 2 7 6 1 . . 1 . 2 Energy Cannon 2 | . . . 1 . . . 1 7 4 7 6 . . . . . . Ballistic Gun 2 | . 2 . . . . . . 2 6 . . 2 5 5 8 11 3 Peak Build Rating 118 | 7 12 11 22 22 22 22 33 45 52 52 52 79 77 77 88 93 118 Average Rating 44 | 5 9 10 18 21 19 22 29 38 49 51 50 71 77 77 81 88 99 On Entrance 41 | . 7 10 10 21 21 22 22 32 45 52 52 46 77 77 77 88 89 Naked Turns 5 | . . . . . . . . . . . . . . . . . 5 Heaviest Build 67 | 12 32 30 44 43 63 63 65 65 67 67 67 64 42 42 54 55 64 Greatest Support 86 | 20 40 40 60 60 63 63 66 86 80 80 80 80 46 50 49 54 68 Greatest Overweight (x) 2 | . 1 . . . . . . . 1 . . 1 . . 1 1 2 Average Overweight (x) . | . . . . . . . . . . . . . . . . . . Largest Inventory Capacity 20 | 8 15 15 15 15 20 20 20 20 20 20 20 20 15 15 15 15 15 Average Capacity 16 | 7 12 15 15 15 15 20 20 20 20 20 20 10 15 15 15 15 14 Most Carried 20 | 7 14 15 15 15 16 15 20 20 20 20 20 19 15 15 15 15 15 Average Carried 15 | 4 10 14 14 15 15 15 19 19 19 19 19 10 15 15 14 15 13 Final Capacity 20 | 8 15 15 15 15 20 20 20 20 20 20 20 15 15 15 15 15 5 Final Carried 20 | 7 14 15 15 15 15 15 20 20 20 20 19 15 15 15 15 15 1 Class Distribution -------------------- 41% | Hacker-Mutant 36% | Scavenger-Mutant 19% | Mutant Dominant Class ---------------- Mutant | -10/Materials Mutant | -10/Mines Scavenger-Mutant | -9/Materials Scavenger-Mutant | -9/Mines Scavenger-Mutant | -9/Exiles Scavenger-Mutant | -8/Mines Scavenger-Mutant | -8/Materials Scavenger-Mutant | -7/Factory Hacker-Mutant | -7/Storage Hacker-Mutant | -7/Recycling Hacker-Mutant | -7/Scraptown Hacker-Mutant | -5/Factory Hacker-Mutant | -5/Upper Caves Hacker-Mutant | -5/Upper Caves Scavenger-Mutant | -5/Warlord Scavenger-Mutant | -4/Proximity Caves Hacker-Mutant | -4/Factory Resources | -11 -10 -10 -9 -9 -9 -8 -8 -7 -7 -7 -7 -5 -5 -5 -5 -4 -4 ----------- Run | Yrd Mat Min Mat Min Exi Min Mat Fac Sto Rec Scr Fac Upp Upp War Pro Fac Matter Collected 5286 | 278 335 46 417 60 10 30 161 487 677 10 10 703 105 12 464 138 1343 Remotely . | . . . . . . . . . . . . . . . . . . Salvage Created 8949 | 138 816 78 1745 90 . . 948 856 886 140 . 1207 . . 210 141 1694 Parts 454 | 12 47 3 91 2 . . 44 47 49 3 . 54 . . 6 9 87 Haulers Intercepted 24 | . 2 . 6 . . . 5 3 3 . . 3 . . . . 2 Recyclers Shooed 16 | . 1 . 4 . . . . 1 4 . . 1 . . . . 5 Parts Field Recycled . | . . . . . . . . . . . . . . . . . . Retrieved Matter . | . . . . . . . . . . . . . . . . . . Parts Self-Destructed 8 | . . . . . . . . . . . . . . . . 8 . Prevented 1 | . . . . . . . . . . . . . . . . 1 . Kills | -11 -10 -10 -9 -9 -9 -8 -8 -7 -7 -7 -7 -5 -5 -5 -5 -4 -4 ------- Run | Yrd Mat Min Mat Min Exi Min Mat Fac Sto Rec Scr Fac Upp Upp War Pro Fac Combat Hostiles Destroyed 141 | . 18 . 27 2 . . 14 15 14 1 . 9 . . 6 2 33 Melee 4 | . . . . . . . . . . . . 2 . . . . 2 Guns 77 | . 16 . 18 2 . . 13 2 7 1 . 1 . . 5 2 10 Cannons 15 | . . . 5 . . . . 6 1 . . . . . . . 3 AOE 44 | . 2 . 4 . . . 1 6 6 . . 6 . . 1 . 18 Classes Destroyed 17 | 2 7 . 3 . . . 1 2 . . . . . . 2 . . Worker 21 | . 2 . 4 . . . 1 5 2 . . 4 . . . . 3 Builder 15 | . 2 . 1 . . . . 5 1 . . 1 . . . . 5 Tunneler 6 | 2 . . . . . . . . . . . 1 . . . . 3 Hauler 24 | . 2 . 6 . . . 5 3 3 . . 3 . . . . 2 Recycler 16 | 1 . 1 3 . . . . 1 2 1 . 3 . . . . 4 Mechanic 2 | . . . . . . . . 1 . . . 1 . . . . . Operator 8 | . 1 . 2 . . . 1 3 . . . 1 . . . . . Watcher 12 | . 3 . 1 . . . 1 2 1 . . 2 . . . . 2 Swarmer 37 | . 6 . 4 . . . . 4 6 . . 3 . . . . 14 Saboteur 2 | . . . . . . . . . . . . . . . 2 . . Grunt 63 | . 12 . 14 2 . . 8 7 6 . . 5 . . 3 . 6 Brawler 2 | . . . 1 . . . . . . . . . . . . . 1 Duelist 2 | . . . 2 . . . . . . . . . . . . . . Protector 2 | . . . . . . . . . . . . . . . 1 . 1 Sentry 12 | . . . 6 . . . 3 . 2 1 . . . . . . . Hunter 14 | . . . . . . . 3 2 1 . . 1 . . . 2 5 Programmer 9 | . . . . . . . . 2 1 . . . . . . . 6 Best Kill Streak 9 | 3 3 1 5 1 . . 4 9 5 1 . 7 . . 5 2 7 Combat Bots Only 5 | . 3 . 4 1 . . 3 4 4 1 . 4 . . 5 2 5 Max Kills in Single Turn 6 | 1 3 1 3 1 . . 1 6 4 1 . 3 . . 1 1 5 Gunslinging 1 | . . . . . . . . . . . . . . . . . 1 Exploded 3 | . 1 . 3 . . . 1 1 3 . . 3 . . 1 . 3 Melee 1 | . . . . . . . . . . . . 1 . . . . 1 Uniques/NPCs Destroyed . | . . . . . . . . . . . . . . . . . . Combat | -11 -10 -10 -9 -9 -9 -8 -8 -7 -7 -7 -7 -5 -5 -5 -5 -4 -4 -------- Run | Yrd Mat Min Mat Min Exi Min Mat Fac Sto Rec Scr Fac Upp Upp War Pro Fac Hostile Shots Fired 1112 | . 128 2 100 9 . . 52 85 148 18 . 98 . 4 6 52 410 Missed 392 | . 31 . 40 . . . 19 25 52 5 . 37 . 1 2 23 157 Hits 720 | . 97 2 60 9 . . 33 60 96 13 . 61 . 3 4 29 253 Melee 4 | . . . 4 . . . . . . . . . . . . . . Projectile 716 | . 97 2 56 9 . . 33 60 96 13 . 61 . 3 4 29 253 Critical Strikes 24 | . 3 . 2 . . . 1 3 1 . . 1 . . . 1 12 Damage Taken 11128 | . 1025 26 771 95 . . 313 1018 1031 102 . 1267 . 51 92 484 4853 Core 1872 | . 220 26 91 . . . 12 62 79 6 . 135 . . . 77 1164 Absorbed by Shields 118 | . . . . . . . 118 . . . . . . . . . . Redirected to Shielding 305 | . . . . . . . . . . . . 210 . . . . 95 Regen/Repaired (Parts) 715 | . . . 62 . . . . 113 411 . . 59 . . 50 . 20 Core Remaining (%) 72 | 100 . 1 . . . 77 97 . . . 79 . . . . 78 . Volleys Fired 552 | 6 88 16 97 9 . . 63 60 42 4 . 45 . 3 29 8 82 Largest 2 | 2 2 2 2 2 . . 2 2 2 2 . 1 . 1 2 2 2 Hottest 260 | 60 156 112 124 112 . . 112 136 100 100 . 100 . 32 64 260 132 Shots Fired 947 | 12 171 17 188 18 . . 123 112 78 7 . 45 . 3 57 14 102 Gun 758 | 12 165 2 149 18 . . 122 28 69 3 . 42 . 3 56 12 77 Cannon 134 | . . . 37 . . . . 76 6 4 . . . . 1 . 10 Launcher 34 | . . . 2 . . . 1 8 3 . . 3 . . . 2 15 Special 21 | . 6 15 . . . . . . . . . . . . . . . Kinetic 279 | 6 31 . . . . . . 32 65 . . 26 . 3 56 12 48 Thermal 597 | 6 140 17 182 18 . . 122 72 10 7 . 16 . . . 2 5 Explosive 32 | . . . 2 . . . 1 8 3 . . 3 . . . . 15 Electromagnetic 4 | . . . 4 . . . . . . . . . . . . . . Entropic 35 | . . . . . . . . . . . . . . . 1 . 34 Robot Hit Streak 16 | 5 10 1 15 4 . . 16 7 16 5 . 6 . 3 12 3 10 Robot Miss Streak 8 | 2 4 1 4 5 . . 3 4 3 1 . 4 . . 2 2 8 Penetration Max 2 | . . . . . . . . . 1 . . . . . 2 1 1 Secondary Targets 5 | . 1 . . . . . 1 . 1 . . . . . . . 2 Max Gunslinging Chain 1 | . 1 . . . . . 1 . 1 . . . . . . . 1 Shots Hit Robots 607 | 8 104 1 122 8 4 . 84 72 53 6 . 46 . 1 20 7 71 Core Hits 366 | 4 45 4 52 3 . . 34 42 36 2 . 31 . . 20 6 87 Critical Kills 3 | . . . . . . . . . . . . . . . 1 . 2 Critical Parts Destroyed 10 | . . . . . . . . 1 . . . . . . 2 . 7 Critical Strikes 56 | . 7 . 12 1 . . 8 6 . 1 . 4 . . 3 . 14 Burn 32 | . 7 . 12 1 . . 8 2 . 1 . 1 . . . . . Destroy 9 | . . . . . . . . . . . . 1 . . 3 . 5 Blast 3 | . . . . . . . . 3 . . . . . . . . . Smash 1 | . . . . . . . . 1 . . . . . . . . . Impale 1 | . . . . . . . . . . . . . . . . . 1 Detonate 4 | . . . . . . . . . . . . . . . . . 4 Sunder 4 | . . . . . . . . . . . . . . . . . 4 Melee Attacks 131 | . . . . 14 4 . 2 8 11 . . 55 . . . . 37 Impact 41 | . . . . 14 . . 2 8 11 . . 6 . . . . . Slashing 49 | . . . . . . . . . . . . 49 . . . . . Piercing 37 | . . . . . . . . . . . . . . . . . 37 Sneak Attacks 24 | . . . . . 4 . . 2 1 . . 14 . . . . 3 Combat Hostiles 1 | . . . . . . . . . . . . . . . . . 1 Follow-up Attacks 3 | . . . . . . . . . . . . 1 . . . . 2 Damage Inflicted 23924 | 95 1729 59 2457 133 . . 1556 3386 2241 226 . 3574 . 20 1136 266 7046 Guns 9419 | 93 1446 29 1650 121 . . 1385 407 947 69 . 467 . 20 1136 169 1480 Cannons 2484 | . . . 579 . . . . 1204 88 81 . . . . . . 532 Explosions 8880 | . 206 . 149 . . . 103 1535 1118 . . 1369 . . . 97 4303 Melee 2769 | . . . . . . . . 228 72 . . 1738 . . . . 731 Ramming 348 | 2 53 30 79 12 . . 68 12 16 76 . . . . . . . Kinetic 4269 | 49 302 . . . . . . 683 901 . . 356 . 20 1136 169 653 Thermal 8903 | 44 1253 29 2141 121 . . 1385 1629 134 150 . 111 . . . 97 1809 Explosive 6181 | . . . 149 . . . 103 834 1118 . . 1369 . . . . 2608 Electromagnetic 209 | . 121 . 88 . . . . . . . . . . . . . . Impact 300 | . . . . . . . . 228 72 . . . . . . . . Slashing 1738 | . . . . . . . . . . . . 1738 . . . . . Piercing 731 | . . . . . . . . . . . . . . . . . 731 Entropic 1245 | . . . . . . . . . . . . . . . . . 1245 Highest Corruption 7 | . 1 1 . . . . 7 4 4 . . . . . . . 4 Average Corruption 2 | . 1 1 . . . . 6 1 3 . . . . . . . 2 Corruption Purged 4 | . . . . . . . . . 4 . . . . . . . . Corruption Blocked . | . . . . . . . . . . . . . . . . . . Effects 55 | . 9 1 . . . . 14 7 10 . . . . . . . 14 Message Errors 10 | . 4 1 . . . . 3 . 1 . . . . . . . 1 Matter Fused 9 | . . . . . . . 1 3 3 . . . . . . . 2 Heat Flow Errors 10 | . 1 . . . . . 2 3 3 . . . . . . . 1 Energy Discharges 9 | . 1 . . . . . 4 . . . . . . . . . 4 Parts Rejected 1 | . . . . . . . . . . . . . . . . . 1 Parts Fused 2 | . 1 . . . . . . . 1 . . . . . . . . Data Loss (minor) 8 | . 2 . . . . . 1 1 1 . . . . . . . 3 Data Loss (major) 4 | . . . . . . . 2 . 1 . . . . . . . 1 Weapon Failures 2 | . . . . . . . 1 . . . . . . . . . 1 Overload Shots . | . . . . . . . . . . . . . . . . . . Overflow Damage 1202 | . 25 . 23 . . . 2 383 124 1 . 184 . . . . 460 Projectiles 86 | . . . 7 . . . . 27 . 1 . . . . . . 51 Explosions 633 | . 25 . 16 . . . . 153 92 . . 12 . . . . 335 Melee 483 | . . . . . . . 2 203 32 . . 172 . . . . 74 Knockbacks 6 | . . . . . . . . 6 . . . . . . . . . Impact 1 | . . . . . . . . 1 . . . . . . . . . Kinetic 5 | . . . . . . . . 5 . . . . . . . . . Secondary . | . . . . . . . . . . . . . . . . . . Self-Inflicted Damage 322 | . 34 . . . . . . . 87 . . . . . . . 201 Shots 9 | . 1 . . . . . . . 2 . . . . . . . 6 Rammed 40 | . 6 6 12 1 . . 7 1 4 3 . . . . . . . Targets Rammed 49 | 1 9 6 15 1 . . 7 1 5 4 . . . . . . . Kicked 3 | 1 2 . . . . . . . . . . . . . . . . Crushed 6 | . 1 . 3 . . . . . 1 1 . . . . . . . Highest Temperature 277 | . 240 120 135 75 . . 84 252 243 16 . 269 . 9 . 200 277 Average Temperature 53 | . 63 37 30 31 . . 10 42 87 8 . 74 . 7 . 113 59 Received Heat Transfer 2237 | . 363 9 303 54 . . 104 288 288 36 . 135 . 9 48 . 600 Siege Activations . | . . . . . . . . . . . . . . . . . . Martial Activations . | . . . . . . . . . . . . . . . . . . Shielding Activations . | . . . . . . . . . . . . . . . . . . Robots Disrupted . | . . . . . . . . . . . . . . . . . . Combat Hostiles . | . . . . . . . . . . . . . . . . . . Robots Corrupted 1 | . . . . . . . . 1 . . . . . . . . . Combat Hostiles . | . . . . . . . . . . . . . . . . . . Parts Fried 4 | . . . . . . . . 3 1 . . . . . . . . Impact Corruptions 6 | . . . . . . . 1 4 1 . . . . . . . . Robots Melted 4 | . . . . . . . 2 2 . . . . . . . . . Combat Hostiles 1 | . . . . . . . . 1 . . . . . . . . . Parts Melted 43 | . 5 . 16 1 . . 9 9 . 2 . . . . . . 1 Heat Transferred 17933 | 100 3524 74 5587 370 . . 3848 2189 185 296 . 300 . . . 160 1300 Parts Sabotaged . | . . . . . . . . . . . . . . . . . . Parts Stolen . | . . . . . . . . . . . . . . . . . . Parts Stripped . | . . . . . . . . . . . . . . . . . . Power Chain Reactions . | . . . . . . . . . . . . . . . . . . Alert | -11 -10 -10 -9 -9 -9 -8 -8 -7 -7 -7 -7 -5 -5 -5 -5 -4 -4 ------- Run | Yrd Mat Min Mat Min Exi Min Mat Fac Sto Rec Scr Fac Upp Upp War Pro Fac Maximum Alert Level 3 | . . . 1 . . . . 2 2 . . 2 . . . . 3 Low Security (%) 63 | 100 100 100 51 100 . 100 100 48 32 100 . 42 . . . . 3 Level 1 21 | . . . 48 . . . . 28 53 . . 30 . . . . 24 Level 2 8 | . . . . . . . . 23 14 . . 27 . . . . 18 Level 3 6 | . . . . . . . . . . . . . . . . . 53 Level 4 . | . . . . . . . . . . . . . . . . . . Level 5 . | . . . . . . . . . . . . . . . . . . High Security . | . . . . . . . . . . . . . . . . . . Max Security . | . . . . . . . . . . . . . . . . . . Peak Influence 1074 | 10 169 61 374 142 . . 168 496 482 108 . 635 . . . . 1074 Initial 142 | . . 31 14 142 . . . 21 53 78 . . . . . . . Average 207 | . 89 17 174 44 . . 83 218 214 21 . 289 . . . . 683 Influence Increases 8166 | 15 649 127 1035 41 . . 650 784 875 106 . 1281 . 60 255 50 2238 Destroy 0b10 Robot/C 3540 | . 360 80 640 40 . . 380 300 440 20 . 460 . . 100 40 680 Destroy 0b10 Robot/NC 550 | 15 50 5 85 . . . 40 100 45 5 . 100 . . 5 . 100 Destroy Leader 856 | . 80 20 176 . . . 112 90 118 . . 112 . . . 10 138 Allied During Kill 282 | . . 12 18 . . . 26 . 75 1 . 136 . . . . 14 Successful Hack 229 | . 36 . 23 . . . 19 29 10 50 . 37 . . . . 25 Select Force Hacks 120 | . 30 . 30 . . . 30 . . 30 . . . . . . . Disable Machine 1005 | . 45 . 15 . . . . 210 135 . . 135 . . . . 465 Destroy Structure 909 | . 33 10 18 1 . . 13 40 52 . . 196 . . . . 546 Partial Spotted 30 | . . . . . . . . . . . . . . . . . 30 Lose Combat Pursuer 645 | . 15 . 30 . . . 30 15 . . . 105 . 60 150 . 240 Influence Decreases 7162 | 15 566 172 708 406 . . 602 714 792 307 . 654 323 159 297 213 1234 Entered New Map 1174 | . . 52 24 223 . . . 27 65 123 . . 233 59 205 163 . Time Decay 4144 | 15 526 120 504 183 . . 448 387 477 184 . 454 90 100 92 50 514 Lost Part 310 | . 40 . 10 . . . . . . . . 40 . . . . 220 Lost Ally 540 | . . . 20 . . . 60 . 100 . . 160 . . . . 200 Purge Threat 994 | . . . 150 . . . 94 300 150 . . . . . . . 300 Squads Dispatched 47 | . 3 . 5 . . . 4 5 4 . . 16 . . . . 10 Investigation 20 | . 2 . 3 . . . 2 1 . . . 8 . . . . 4 Extermination 9 | . . . . . . . . 2 2 . . 2 . . . . 3 Reinforcement 16 | . 1 . 2 . . . 2 2 2 . . 6 . . . . 1 Assault 2 | . . . . . . . . . . . . . . . . . 2 Garrison . | . . . . . . . . . . . . . . . . . . Intercept . | . . . . . . . . . . . . . . . . . . Searches Triggered . | . . . . . . . . . . . . . . . . . . Construction Impeded 7 | . . . . . . . 1 1 . . . 4 . . . . 1 Haulers Reinforced 2 | . . . . . . . . . 2 . . . . . . . . Active Scanning Responses . | . . . . . . . . . . . . . . . . . . Cargo Convoy Interrupts . | . . . . . . . . . . . . . . . . . . Stealth | -11 -10 -10 -9 -9 -9 -8 -8 -7 -7 -7 -7 -5 -5 -5 -5 -4 -4 --------- Run | Yrd Mat Min Mat Min Exi Min Mat Fac Sto Rec Scr Fac Upp Upp War Pro Fac Distress Signals 20 | . 2 . 3 . . . 5 . 2 . . 3 . . 1 . 4 Communications Jammed . | . . . . . . . . . . . . . . . . . . Distress Signals . | . . . . . . . . . . . . . . . . . . Times Spotted 301 | . 34 5 50 2 . . 32 23 25 1 . 39 . 5 20 2 63 Peak Tracking Total 11 | . 4 3 7 1 . . 6 5 5 1 . 8 . 4 7 2 11 Tactical Retreats 22 | . 1 . 1 . . . 1 1 . . . 4 . 2 3 . 9 Traps | -11 -10 -10 -9 -9 -9 -8 -8 -7 -7 -7 -7 -5 -5 -5 -5 -4 -4 ------- Run | Yrd Mat Min Mat Min Exi Min Mat Fac Sto Rec Scr Fac Upp Upp War Pro Fac Traps Triggered 16 | . 1 . 2 . . . 5 3 . . . 4 . . . . 1 Indirectly . | . . . . . . . . . . . . . . . . . . Trap Hack Attempts . | . . . . . . . . . . . . . . . . . . Triggered . | . . . . . . . . . . . . . . . . . . Disarmed . | . . . . . . . . . . . . . . . . . . Reprogrammed . | . . . . . . . . . . . . . . . . . . Reused . | . . . . . . . . . . . . . . . . . . Traps Extracted . | . . . . . . . . . . . . . . . . . . Installed . | . . . . . . . . . . . . . . . . . . Triggered . | . . . . . . . . . . . . . . . . . . Time Bombs Activated 1 | . . . . . . . . . . . . . . . 1 . . Exploded 1 | . . . . . . . . . . . . . . . 1 . . Machines | -11 -10 -10 -9 -9 -9 -8 -8 -7 -7 -7 -7 -5 -5 -5 -5 -4 -4 ---------- Run | Yrd Mat Min Mat Min Exi Min Mat Fac Sto Rec Scr Fac Upp Upp War Pro Fac Machines Disabled 70 | . 4 . 1 . . . . 14 9 . . 9 . . 2 . 31 Max in Single Turn 15 | . 2 . 1 . . . . 14 1 . . 1 . . 1 . 15 Garrison Access 3 | . . . . . . . . 1 1 . . 1 . . . . . Machines Repaired . | . . . . . . . . . . . . . . . . . . Machines Dismantled . | . . . . . . . . . . . . . . . . . . Machines Sabotaged . | . . . . . . . . . . . . . . . . . . Overloaded Fab Kills . | . . . . . . . . . . . . . . . . . . Hacking | -11 -10 -10 -9 -9 -9 -8 -8 -7 -7 -7 -7 -5 -5 -5 -5 -4 -4 --------- Run | Yrd Mat Min Mat Min Exi Min Mat Fac Sto Rec Scr Fac Upp Upp War Pro Fac Machines Accessed 91 | . 8 . 10 . 1 . 9 9 7 10 1 22 . . 1 . 13 Terminals 54 | . 7 . 8 . . . 8 3 5 6 . 10 . . . . 7 Fabricators 3 | . . . . . . . . 1 . . . 1 . . . . 1 Repair Stations 8 | . . . 1 . . . . 2 1 . . 3 . . . . 1 Recycling Units 18 | . 1 . 1 . . . 1 2 . 4 . 5 . . . . 4 Scanalyzers 2 | . . . . . . . . . . . . 2 . . . . . Garrison Access 3 | . . . . . . . . 1 1 . . 1 . . . . . Total Hacks 259 | . 19 . 28 . 1 . 34 35 23 20 2 60 . . 1 . 36 Successful 149 | . 13 . 15 . 1 . 24 19 16 10 2 31 . . 1 . 17 Failed 110 | . 6 . 13 . . . 10 16 7 10 . 29 . . . . 19 Catastrophic 12 | . . . 1 . . . 1 . . 1 . 6 . . . . 3 Database Lockouts . | . . . . . . . . . . . . . . . . . . Manual 132 | . 11 . 19 . . . 23 18 12 12 . 23 . . . . 14 Terminals 192 | . 18 . 25 . . . 33 23 18 13 . 35 . . . . 27 Fabricators 7 | . . . . . . . . 2 . . . 2 . . . . 3 Repair Stations 18 | . . . 2 . . . . 4 4 . . 6 . . . . 2 Recycling Units 26 | . 1 . 1 . . . 1 5 . 7 . 7 . . . . 4 Scanalyzers 9 | . . . . . . . . . . . . 9 . . . . . Garrison Access 3 | . . . . . . . . 1 1 . . 1 . . . . . Terminal Hacks 58 | . 4 . 5 . 1 . 11 12 5 1 2 9 . . 1 . 7 Record 2 | . . . . . 1 . . . . . 1 . . . . . . Part Schematic 3 | . . . . . . . 2 . . 1 . . . . . . . Robot Analysis 2 | . . . . . . . 2 . . . . . . . . . . Prototype ID Bank 6 | . 3 . 1 . . . . 2 . . . . . . . . . Open Door 4 | . . . . . . . . . 2 . 1 . . . 1 . . Level Access Points 1 | . . . . . . . . . . . . 1 . . . . . Branch Access Points 2 | . . . . . . . . 1 . . . 1 . . . . . Machine Index 1 | . . . . . . . . . . . . 1 . . . . . Terminal Index 3 | . . . 1 . . . . 1 . . . . . . . . 1 Recycling Unit Index 2 | . . . . . . . . . . . . 1 . . . . 1 Alert Level 7 | . . . 1 . . . 1 1 2 . . 1 . . . . 1 Unreport Threat 7 | . . . 1 . . . 1 2 1 . . . . . . . 2 Locate Traps 8 | . 1 . 1 . . . 3 2 . . . 1 . . . . . Dispatch Records 1 | . . . . . . . 1 . . . . . . . . . . Patrol Status 1 | . . . . . . . . . . . . 1 . . . . . Transport Status 1 | . . . . . . . 1 . . . . . . . . . . Recall Extermination 1 | . . . . . . . . . . . . 1 . . . . . Hauler Manifests 1 | . . . . . . . . 1 . . . . . . . . . Registered Components 1 | . . . . . . . . 1 . . . . . . . . . Zone Layout 4 | . . . . . . . . 1 . . . 1 . . . . 2 Fabricator Hacks 5 | . . . . . . . . 2 . . . 1 . . . . 2 Load Schematic 3 | . . . . . . . . 1 . . . 1 . . . . 1 Build 2 | . . . . . . . . 1 . . . . . . . . 1 Repair Station Hacks 11 | . . . 2 . . . . 2 4 . . 3 . . . . . Scan Component 5 | . . . 1 . . . . 1 2 . . 1 . . . . . Repair 5 | . . . 1 . . . . 1 2 . . 1 . . . . . Refit 1 | . . . . . . . . . . . . 1 . . . . . Recycling Unit Hacks 4 | . . . . . . . . . . 4 . . . . . . . Retrieve Components 4 | . . . . . . . . . . 4 . . . . . . . Scanalyzer 7 | . . . . . . . . . . . . 7 . . . . . Insert Component 3 | . . . . . . . . . . . . 3 . . . . . Analyze 4 | . . . . . . . . . . . . 4 . . . . . Garrison Access Hacks 3 | . . . . . . . . 1 1 . . 1 . . . . . Seal Access 3 | . . . . . . . . 1 1 . . 1 . . . . . Unauthorized Hacks 61 | . 9 . 8 . . . 13 2 6 5 . 10 . . . . 8 Terminals 46 | . 8 . 7 . . . 12 1 6 4 . 4 . . . . 4 Track 3 | . . . . . . . 1 . . . . 2 . . . . . Assimilate 1 | . 1 . . . . . . . . . . . . . . . . Botnet 13 | . 1 . 2 . . . 3 1 2 . . 2 . . . . 2 Operators 4 | . . . . . . . 2 . 1 . . . . . . . 1 Skim 25 | . 6 . 5 . . . 6 . 3 4 . . . . . . 1 Fabricators 1 | . . . . . . . . . . . . 1 . . . . . Recompile 1 | . . . . . . . . . . . . 1 . . . . . Repair Stations . | . . . . . . . . . . . . . . . . . . Recycling Units 14 | . 1 . 1 . . . 1 1 . 1 . 5 . . . . 4 Recyclers 1 | . . . . . . . . 1 . . . . . . . . . Tunnel 4 | . 1 . 1 . . . 1 . . 1 . . . . . . . Fedlink 4 | . . . . . . . . . . . . 3 . . . . 1 Scrapoids 5 | . . . . . . . . . . . . 2 . . . . 3 Scanalyzers . | . . . . . . . . . . . . . . . . . . Garrison Access . | . . . . . . . . . . . . . . . . . . Data Cores Recovered 3 | . . . . . . . . 2 . . . 1 . . . . . Used 2 | . . . . . . . . 1 . . . 1 . . . . . Hacking Detections 65 | . 7 . 9 . . . 6 7 5 8 . 14 . . . . 9 Full Trace Events 3 | . 1 . . . . . . 1 . . . 1 . . . . . Feedback Events . | . . . . . . . . . . . . . . . . . . Feedback Blocked . | . . . . . . . . . . . . . . . . . . Robot Schematics Acquired . | . . . . . . . . . . . . . . . . . . Robots Built . | . . . . . . . . . . . . . . . . . . Authchips . | . . . . . . . . . . . . . . . . . . Time . | . . . . . . . . . . . . . . . . . . Total Robot Build Rating . | . . . . . . . . . . . . . . . . . . Part Schematics Acquired 6 | . . . . . . . 2 . . 1 . 3 . . . . . Parts Built 4 | . . . . . . . . 2 . . . . . . . . 2 Authchips 1 | . . . . . . . . . . . . . . . . . 1 Time 142 | . . . . . . . . 36 . . . . . . . . 106 Total Part Build Rating 18 | . . . . . . . . 6 . . . . . . . . 12 Parts Repaired 5 | . . . 1 . . . . 1 2 . . 1 . . . . . Time 215 | . . . 51 . . . . 32 88 . . 44 . . . . . Parts Recycled . | . . . . . . . . . . . . . . . . . . Recycled Matter . | . . . . . . . . . . . . . . . . . . Retrieved Matter . | . . . . . . . . . . . . . . . . . . Retrieved Components 9 | . . . . . . . . . . 9 . . . . . . . Parts Scanalyzed 3 | . . . . . . . . . . . . 3 . . . . . Part Schematics Acquired 3 | . . . . . . . . . . . . 3 . . . . . Parts Damaged . | . . . . . . . . . . . . . . . . . . Bothacking | -11 -10 -10 -9 -9 -9 -8 -8 -7 -7 -7 -7 -5 -5 -5 -5 -4 -4 ------------ Run | Yrd Mat Min Mat Min Exi Min Mat Fac Sto Rec Scr Fac Upp Upp War Pro Fac Used RIF Installer . | . . . . . . . . . . . . . . . . . . Robots Hacked 4 | . . . . . 4 . . . . . . . . . . . . Non-combat 3 | . . . . . 3 . . . . . . . . . . . . Combat 1 | . . . . . 1 . . . . . . . . . . . . Robot Hacks Applied 4 | . . . . . 4 . . . . . . . . . . . . parse_system 4 | . . . . . 4 . . . . . . . . . . . . Relay Couplers Released 2 | . . . . . . . . 2 . . . . . . . . . Machine Destruction 2 | . . . . . . . . 2 . . . . . . . . . Fabnet Peak Effective % . | . . . . . . . . . . . . . . . . . . Robots Rewired . | . . . . . . . . . . . . . . . . . . Allies Hacked . | . . . . . . . . . . . . . . . . . . Hacks Repelled . | . . . . . . . . . . . . . . . . . . Allies | -11 -10 -10 -9 -9 -9 -8 -8 -7 -7 -7 -7 -5 -5 -5 -5 -4 -4 -------- Run | Yrd Mat Min Mat Min Exi Min Mat Fac Sto Rec Scr Fac Upp Upp War Pro Fac Total Allies 36 | . 1 2 . 3 . . . . 10 . . 10 . . . . 10 Largest Group 10 | . 1 3 2 3 3 3 3 . 10 1 1 5 . . . . 5 Highest-Rated Group 238 | . 10 56 41 40 40 40 40 . 173 16 16 235 . . . . 238 Highest-Rated Ally 50 | . 10 31 31 16 16 16 16 . 29 16 16 47 . . . . 50 Total Orders 9 | . . . . . . . . . . . 1 8 . . . . . STAY 5 | . . . . . . . . . . . 1 4 . . . . . FOLLOW 4 | . . . . . . . . . . . . 4 . . . . . Ally Attacks 339 | . . 9 25 . . . 43 . 74 . . 134 . . . . 54 Total Damage 5359 | . . 128 334 . . . 498 . 933 . . 2498 . . . . 968 Kills 52 | . . 4 6 . . . 5 . 9 . . 26 . . . . 2 Allies Corrupted . | . . . . . . . . . . . . . . . . . . Allies Melted 1 | . . . . . . . . . . . . . . . 1 . . Intel | -11 -10 -10 -9 -9 -9 -8 -8 -7 -7 -7 -7 -5 -5 -5 -5 -4 -4 ------- Run | Yrd Mat Min Mat Min Exi Min Mat Fac Sto Rec Scr Fac Upp Upp War Pro Fac Active Infowar (turns) 10201 | 4 700 393 222 . . . . 1140 1338 753 2105 1130 185 201 549 308 1173 Optics 224 | . . . . . . . . . . . . . . . . . 224 Sensors 2990 | . . . . . . . . . . . . 878 185 201 549 308 869 Terrain 280 | . 221 . 59 . . . . . . . . . . . . . . Structural 257 | . . . . . . . . . . . . . . . . . 257 Seismic 1098 | 4 479 393 222 . . . . . . . . . . . . . . Machine Analysis 5553 | . . . . . . . . 1140 1338 753 2105 217 . . . . . Cloaking 180 | . . . . . . . . . . . . 180 . . . . . ECM 1 | . . . . . . . . . . . . . . . . . 1 Robot Analysis Total 2 | . . . . . . . 2 . . . . . . . . . . Derelict Logs Recovered 5 | . . 1 . 2 . . . . . . . . . . . 2 . Drone Launches . | . . . . . . . . . . . . . . . . . . Drone Recoveries . | . . . . . . . . . . . . . . . . . . Exploration | -11 -10 -10 -9 -9 -9 -8 -8 -7 -7 -7 -7 -5 -5 -5 -5 -4 -4 ------------- Run | Yrd Mat Min Mat Min Exi Min Mat Fac Sto Rec Scr Fac Upp Upp War Pro Fac Turns Passed 16421 | 102 1725 400 1906 640 387 321 1473 1141 1338 753 2105 1321 185 201 568 342 1513 Spaces Moved 12871 | 59 904 191 868 359 233 201 754 520 606 430 1232 2295 449 486 902 594 1788 Core 17 | 11 . . . . . . . . . . . . . . . . 6 Treads 5968 | . 573 191 868 359 233 201 754 520 606 430 1232 1 . . . . . Legs 379 | 48 331 . . . . . . . . . . . . . . . . Wheels 20 | . . . . . . . . . . . . . . . . . 20 Hover 6487 | . . . . . . . . . . . . 2294 449 486 902 594 1762 Flight . | . . . . . . . . . . . . . . . . . . Fastest Speed 30 | 50 120 160 160 160 160 160 160 160 170 170 170 30 40 36 40 45 40 Average Speed 101 | 106 147 160 160 160 160 160 160 160 170 170 170 37 40 39 42 50 51 Slowest Speed 250 | 120 190 160 160 160 160 160 160 170 250 170 170 170 40 40 97 114 150 Overloaded Moves 51 | . . . . . . . . . . . . 45 . 6 . . . Propulsion Burnouts . | . . . . . . . . . . . . . . . . . . Robots Hopped 1 | . . . . . . . . . . . . 1 . . . . . Potential Cave-ins 2 | . . . . . . . . . . . . . . . . . 2 Cave-ins Triggered . | . . . . . . . . . . . . . . . . . . Exploration Rate (%) 62 | 4 95 47 94 81 65 60 58 20 71 88 89 49 64 56 76 65 41 Regions Visited 17 Branch Regions 11 Pre-discovered Areas 11 | . 3 1 1 . 1 . 3 . . 1 . 1 . . . . . Known Exits Taken 13 | . 1 1 . . . 1 1 1 1 1 1 1 1 1 1 1 . Unknown Exits Taken 4 | 1 . . 1 1 1 . . . . . . . . . . . . Scrap Searched 16 | . . 1 . 2 . 1 . . . . 6 . 2 3 . 1 . Spaces Dug 168 | . 5 10 . 1 . . 2 6 4 . . 17 . . . . 123 Terrain Destroyed 659 | . 29 15 15 1 . . 10 43 51 . . 54 . 2 18 17 404 Melee 49 | . . . . 1 . . 2 6 4 . . 15 . . . . 21 Projectile 120 | . 5 15 . . . . . 3 2 . . 18 . 2 18 13 44 AOE 490 | . 24 . 15 . . . 8 34 45 . . 21 . . . 4 339 Terrain Rammed . | . . . . . . . . . . . . . . . . . . Walls Destroyed . | . . . . . . . . . . . . . . . . . . Machines Disabled . | . . . . . . . . . . . . . . . . . . Actions | -11 -10 -10 -9 -9 -9 -8 -8 -7 -7 -7 -7 -5 -5 -5 -5 -4 -4 --------- Run | Yrd Mat Min Mat Min Exi Min Mat Fac Sto Rec Scr Fac Upp Upp War Pro Fac Total 15025 | 83 1104 233 1190 391 245 201 893 705 817 443 1245 2647 453 492 1058 623 2202 Wait 751 | 2 52 16 105 7 2 1 28 50 96 1 2 141 5 2 75 10 156 Move 12853 | 59 903 190 867 358 232 200 753 519 605 429 1231 2292 448 485 901 593 1788 Hop 1 | . . . . . . . . . . . . 1 . . . . . Pick Up 153 | 9 18 1 27 . 1 . 13 13 14 2 2 19 . 1 10 1 22 Fast Attach 71 | 5 3 . 6 . . . 3 5 9 . 2 11 . . 8 1 18 Attach 46 | 2 3 . 5 . . . 2 3 . . 1 9 . . 3 . 18 Detach 3 | . . . . . . . . . . . 1 . . . . . 2 Swap 246 | . 16 4 34 2 4 . 10 25 16 1 . 45 . . 13 8 68 Drop 173 | . 12 . 34 . 2 . 12 21 19 2 6 31 . 1 18 2 13 Fire 552 | 6 88 16 97 9 . . 63 60 42 4 . 45 . 3 29 8 82 Melee 127 | . . . . 14 4 . 2 8 11 . . 53 . . . . 35 Ram . | . . . . . . . . . . . . . . . . . . Kick 2 | . 2 . . . . . . . . . . . . . . . . Crush 46 | . 7 6 15 1 . . 7 1 5 4 . . . . . . . Escape Stasis . | . . . . . . . . . . . . . . . . . . Rewire . | . . . . . . . . . . . . . . . . . . Trap 1 | . . . . . . . . . . . . . . . 1 . . Miscellaneous . | . . . . . . . . . . . . . . . . . . Route ------- -11/Scrapyard -10/Materials (discovered 6 exits: *Mat x3 / *Min x2 / Sub) -10/Mines (discovered 3 exits: *Mat x2 / Sub) -9/Materials (discovered 4 exits: *Mat x3 / [*Min]) -9/Mines (discovered 4 exits: *Mat x2 / *Exi / [*Zio]) -9/Exiles -8/Mines -8/Materials (discovered 3 exits: *Fac x3) -7/Factory (discovered 7 exits: Fac x3 / *Sto x2 / *Low x2) -7/Storage (discovered 2 exits: Fac / *Rec) -7/Recycling (discovered 2 exits: *Fac / *Scr) -7/Scraptown (discovered 2 exits: *Fac x2) -5/Factory (discovered 6 exits: *Fac x4 / *Upp x2) -5/Upper Caves -5/Upper Caves (discovered 2 exits: *Fac / *War) -5/Warlord -4/Proximity Caves -4/Factory (discovered 2 exits: [*Res] / [*Upp]) History --------- Turn | Location | Event 20 | -11/Scrapyard | Discovered new exit (range 16) 103 | -11/Scrapyard | Entered Materials 309 | -10/Materials | Build established: Mutant 398 | -10/Materials | Discovered new exit (range 4) 638 | -10/Materials | Core integrity fell below 50% 919 | -10/Materials | Identified exit to Mines 919 | -10/Materials | Identified exit to Subcaves 930 | -10/Materials | Discovered new exit (range 6) 967 | -10/Materials | Learned Storage stockpile data 1004 | -10/Materials | Learned Storage security intel 1057 | -10/Materials | Learned location of 2 exits from Mines 1075 | -10/Materials | Learned 4 Recycling zone layouts 1101 | -10/Materials | Learned location of 2 exits from Mines 1108 | -10/Materials | Discovered exit to Mines (range 16) 1222 | -10/Materials | Discovered new exit (range 15) 1290 | -10/Materials | Core integrity fell below 20% 1828 | -10/Materials | Entered Mines 1828 | -10/Mines | Accompanied by 1 ally 1829 | -10/Mines | Identified exit to Materials 1875 | -10/Mines | A weapon hastily lodged in a ceiling crevice suddenly fell to the ground 2228 | -10/Mines | Entered Materials 2228 | -9/Materials | Accompanied by 2 allies 2228 | -9/Materials | Evolved 2 slots: Propulsion x1, Utility x1 2233 | -9/Materials | Led the pair of lost Derelicts to an unsafe place 2872 | -9/Materials | Discovered new exit (range 16) 3200 | -9/Materials | Discovered new exit (range 12) 3359 | -9/Materials | Build established: Scavenger-Mutant 3370 | -9/Materials | Discovered new exit (range 16) 3438 | -9/Materials | Learned 2 Storage zone layouts 3507 | -9/Materials | Identified exit to Materials 3507 | -9/Materials | Learned location of 1 exit from Materials 3564 | -9/Materials | Learned Storage stockpile data 3611 | -9/Materials | Learned 4 Recycling zone layouts 3646 | -9/Materials | Learned 2 Storage zone layouts 3893 | -9/Materials | Repaired Cld. Ion Engine 4134 | -9/Materials | Entered Mines 4135 | -9/Mines | A Derelict revealed a hidden shortcut to a safe place 4141 | -9/Mines | Excavation squad dispatched 4141 | -9/Mines | A large section of the Mines collapsed 4313 | -9/Mines | Learned Materials terminal intel 4377 | -9/Mines | Learned 2 Materials zone layouts 4552 | -9/Mines | Deemed a non-threat by the Exiles lab entrance 4552 | -9/Mines | Discovered new exit (range 5) 4605 | -9/Mines | Assisted by bots powering up and referring to "LRC-V3" 4632 | -9/Mines | Discovered exit to Materials (range 7) 4774 | -9/Mines | Entered Exiles 4774 | -9/Exiles | Accompanied by 3 allies 4816 | -9/Exiles | Met 8R-AWN 4841 | -9/Exiles | Met EX-HEX 4926 | -9/Exiles | Met EX-DEC 4971 | -9/Exiles | Learned location of Zion (-7) 4998 | -9/Exiles | Met EX-BIN 5146 | -9/Exiles | Discovered new exit (range 10) 5161 | -9/Exiles | Entered Mines 5161 | -8/Mines | Accompanied by 3 allies 5464 | -8/Mines | Discovered exit to Materials (range 13) 5482 | -8/Mines | Entered Materials 5482 | -8/Materials | Accompanied by 3 allies 5482 | -8/Materials | Evolved 2 slots: Utility x2 5483 | -8/Materials | Identified exit to Factory 5485 | -8/Materials | Loaded intel: 12 terminal locations 6356 | -8/Materials | Discovered exit to Factory (range 5) 6563 | -8/Materials | Learned location of 2 exits from Lower Caves 6705 | -8/Materials | Learned location of 2 exits from Lower Caves 6759 | -8/Materials | Learned Storage stockpile data 6804 | -8/Materials | Learned 2 Lower Caves zone layouts 6955 | -8/Materials | Entered Factory 6955 | -7/Factory | Evolved 2 slots: Propulsion x1, Utility x1 6956 | -7/Factory | Identified exit to Factory 7024 | -7/Factory | Fabricated Imp. Propulsion Shielding (x2) 7200 | -7/Factory | Repaired Imp. Treads 7350 | -7/Factory | Discovered new exit (range 9) 7735 | -7/Factory | Identified exit to Storage 7735 | -7/Factory | Identified exit to Lower Caves 8096 | -7/Factory | Entered Storage 8097 | -7/Storage | Identified exit to Recycling 8264 | -7/Storage | Build established: Hacker-Mutant 8449 | -7/Storage | Assisted by bots powering up and referring to "LRC-V3" 8545 | -7/Storage | Lost 7 allies 8659 | -7/Storage | Used back door to open Recycling access 8971 | -7/Storage | Repaired Imp. Medium Armor Plating 9018 | -7/Storage | Repaired Imp. Medium Armor Plating 9434 | -7/Storage | Entered Recycling 9434 | -7/Recycling | Accompanied by 1 ally 9435 | -7/Recycling | Met a Zionite searching for Scraptown 9435 | -7/Recycling | Identified exit to Scraptown 9435 | -7/Recycling | Identified exit to Factory 10146 | -7/Recycling | Scanned before Scraplab entrance 10172 | -7/Recycling | Entered Scraplab 10187 | -7/Recycling | Entered Scraptown 10187 | -7/Scraptown | Accompanied by 1 ally 10405 | -7/Scraptown | Visited Assassins FH 10429 | -7/Scraptown | Visited Shadow of the Wyrm 10692 | -7/Scraptown | Heard Great Nut preacher, LISTEN AND RECITE! 10847 | -7/Scraptown | Discovered exit to Factory (range 13) 10891 | -7/Scraptown | Visited CPS Storage 10925 | -7/Scraptown | Visited Spacefarers 11034 | -7/Scraptown | Visited Cave Peace 11088 | -7/Scraptown | Visited TADAMA 11156 | -7/Scraptown | Visited Awakened 11241 | -7/Scraptown | Visited UFD Registry 11243 | -7/Scraptown | Registered with UFD as "Alphamod" 11281 | -7/Scraptown | Visited DA-N13 Charitable Foundation 11287 | -7/Scraptown | Found DCF Scrap (29 items) 11345 | -7/Scraptown | Visited Observation Area 11393 | -7/Scraptown | Visited Curators Association 11592 | -7/Scraptown | Visited Scrap Suit Storage 11614 | -7/Scraptown | Visited Supply Room 11640 | -7/Scraptown | Visited Scrapoid Pod Storage 11658 | -7/Scraptown | Visited A0-MCA Data Center 11668 | -7/Scraptown | Given an A rating by A0-MCA 11702 | -7/Scraptown | Visited Sword Containment 11730 | -7/Scraptown | Visited Junk Repository 11799 | -7/Scraptown | Visited LU-1G1's Boring Crew 11952 | -7/Scraptown | Discovered exit to Factory (range 3) 12195 | -7/Scraptown | Met Optimus 12195 | -7/Scraptown | Accepted into 0bPrime 12292 | -7/Scraptown | Entered Factory 12292 | -5/Factory | Accompanied by 1 ally 12292 | -5/Factory | Evolved 4 slots: Power x1, Propulsion x1, Utility x2 12335 | -5/Factory | Discovered new exit (range 14) 12420 | -5/Factory | Identified exit to Factory 12493 | -5/Factory | Noticed UFD Elites at a Recycling Unit 12537 | -5/Factory | Scrapoids reinforcements arrived? 12551 | -5/Factory | Lost 3 allies 12569 | -5/Factory | Found Scrap Suit 12615 | -5/Factory | Identified exit to Upper Caves 12659 | -5/Factory | Loaded intel: 7 recycling unit locations 12789 | -5/Factory | Repaired Mic. Nuclear Core 12906 | -5/Factory | Scrapoids reinforcements arrived? 13004 | -5/Factory | Lost 3 allies 13218 | -5/Factory | Learned location of Protoforge (-2) 13613 | -5/Factory | Entered Upper Caves 13639 | -5/Upper Caves | Encountered a Warlord checkpoint 13791 | -5/Upper Caves | Discovered new exit (range 4) 13792 | -5/Upper Caves | Identified exit to Upper Caves 13798 | -5/Upper Caves | Entered another Upper Caves area 13808 | -5/Upper Caves | Discovered exit to Factory (range 16) 13994 | -5/Upper Caves | Discovered new exit (range 12) 13998 | -5/Upper Caves | Identified exit to Warlord 13999 | -5/Upper Caves | Entered Warlord 14207 | -5/Warlord | Warlord's base attacked by MAIN.C 14221 | -5/Warlord | Found Prototype Energy Gun 14221 | -5/Warlord | Identified Vortex Rail 14224 | -5/Warlord | Found Prototype Energy Cannon 14224 | -5/Warlord | Identified Vortex Cannon 14234 | -5/Warlord | Found Vortex Rail 14283 | -5/Warlord | Found Exp. Core Analyzer 14410 | -5/Warlord | Warlord forces counterattacked 14431 | -5/Warlord | Build established: Scavenger-Mutant 14522 | -5/Warlord | Lost 4 allies 14522 | -5/Warlord | Discovered new exit (range 12) 14529 | -5/Warlord | Identified exit to Proximity Caves 14567 | -5/Warlord | Entered Proximity Caves 14597 | -4/Proximity Caves | Lost 4 allies 14793 | -4/Proximity Caves | Learned 12 Research zone layouts 14796 | -4/Proximity Caves | Learned Research stockpile data 14856 | -4/Proximity Caves | Discovered exit to Factory (range 7) 14909 | -4/Proximity Caves | Entered Factory 14909 | -4/Factory | Evolved 2 slots: Propulsion x1, Utility x1 15110 | -4/Factory | Fabricated Cmb. Gravmag System (x2) 15409 | -4/Factory | First assault squad dispatched 15752 | -4/Factory | Found Prototype Device 15867 | -4/Factory | Spotted B-86 Titan 15897 | -4/Factory | Build established: Hacker-Mutant 15921 | -4/Factory | Discovered new exit (range 16) 15981 | -4/Factory | Discovered new exit (range 13) 16005 | -4/Factory | Identified Exp. ECM Suite 16146 | -4/Factory | Lost 6 parts (1p3n1u1w) 16165 | -4/Factory | Loaded intel: 8 recycling unit locations 16299 | -4/Factory | Scrapoids reinforcements arrived? 16335 | -4/Factory | Scrapoids reinforcements arrived? 16360 | -4/Factory | Released all parts (16) 16361 | -4/Factory | Found Scrap Suit 16362 | -4/Factory | Core integrity fell below 50% 16380 | -4/Factory | Found Scrap Suit 16386 | -4/Factory | Core integrity fell below 20% 16390 | -4/Factory | Lost 5 allies 16397 | -4/Factory | Found Scrap Suit 16422 | -4/Factory | Destroyed by G-67 Veteran with Field Laser Last Messages --------------- 16403_ M-36 Artificer fits Backup Power VII on G-67 Veteran. 16404_ Acquired Lgt. Antimatter Reactor. 16406_ Penetrated by Slug. 16406_ Scrap Suit destroyed. 16406_ Penetrated by Slug. 16406_ Slug penetrates Wall. 16406_ H-77 Assassin destroyed. 16410_ Ovr. Huge Scrapsphere repairs itself (+20). 16410_ Acquired 30 matter. 16411_ K-01 Serf collects debris. 16412_ Scrap Suit secures Coil Gun. 16413_ Acquired Imp. Targeting Computer. 16415_ K-01 Serf collects debris. 16416_ Scrap Suit cannibalized Hpw. Shotgun to repair Coil Gun. 16416_ Slug penetrates S-27 Virus. 16416_ S-27 Virus destroyed. 16416_ Vortex Cannon implodes. 16419_ K-01 Serf collects debris. 16419_ Acquired Coil Gun. 16419_ Coil Gun destroyed. Map ----- +----------------------------------------------------+ | ?????? # ##??????????????########## | | ?????? # # ??????????????########## | | ???????# # ???????????????????????# | | ???????# #????????????????????????# | | ???????# #????????????????????????# | | ???????# #?????????????????######## | | ?###???# #??????????????? """"""" # | | ? ???# +??????????????? """"""" # | | ?? ??# #????????????????""""""" # | | ?? ?# #?????????????????""""" # | | ??""""?# #?????????????????? # | | ??"""" # #??????????????????? = # | | # """ # #???????????????????? # | | # """" " #????????????????????? # | | # """" " #############???????###"## | | # " # # ######### | | # =%[ [[=# """ """ + | | ??? ; =!!/# """ """ ######### | | ???????#!]!=!#[ """ """ #??####"##"/## | | ???????#!=!!!%% #??# !|%= # | | ########[!/=!%** #??# """ "= # | | #! # !!%%= #??# "Y "" # | | # # g!##;##########?## """ """ # | | # # # #????#" """ # | | # """" # !s! #????## """ # | | # """" # |%#@% #?????# # | | # """" # !g== #?????# # | | # """" + ; =k #????#"########## | | # # # """"" #????##?????????? | | # """" # # """""" #???????????????? | | # """" ; # """""" #???????????##### | | # """ # # """""" #???????????# | | # """ # ##########???????????#""" | | # # #????????????????????#""" | | #####"## +????????????????????#""" | | # # #????????????????????# | | # ] # #????????????????????# | | # # #????????????????????##### | | # # #????????????????????????? | | # # #?????????################ | | # # #?????????# ! # | | # + #?????????# """ # | | # # ##????????# "Y" """ """ # | | # # T#????????# " " """ """ # | | # # #????????# """ """ # | | # # ##???????## | | # ! # ##########"### | | # # | | # # | | ######## """ """ | +----------------------------------------------------+ Best States ------------- Heat Dissipation 74 Energy Generation 29 Energy Capacity 315 Matter Stores 300 Matter Capacity 300 Sight Range 22 Robot Scan Range 15 Terrain Scan Range 16 Terrain Scan Density 10 Cloak Strength 2 Armor Coverage 325 Propulsion Shielding 66 Utility Shielding 90 Evasion (%) 68 Targeting Accuracy 6 Core Analysis 8 Recoil Reduction 4 Matter Filtering 30 Offensive Hacking 32 Defensive Hacking 28 Authchip Count 1 Item Schematics ----------------- Imp. Propulsion Shielding | -8/Materials | Hacked Imp. Utility Shielding | -8/Materials | Hacked Hvy. Machine Gun | -7/Recycling | Hacked Exp. Utility Shielding | -5/Factory | Scanalyzed Cmb. Gravmag System | -5/Factory | Scanalyzed Cld. Airjet | -5/Factory | Scanalyzed Robot Schematics ------------------ None Fabricated ------------ Imp. Propulsion Shielding | x2 | -7/Factory Cmb. Gravmag System | x2 | -4/Factory | Authchip Repaired ---------- Cld. Ion Engine | 43% | -9/Materials Imp. Treads | 27% | -7/Factory Imp. Medium Armor Plating | 3% | -7/Storage Imp. Medium Armor Plating | 25% | -7/Storage Mic. Nuclear Core | 44% | -5/Factory Alien Tech Used ----------------- None Achievements -------------- None Challenges ------------ None Game ------ Seed AssaultBiocellMicrothruster Manual? 0 Play Time 05:05:57 Cumulative 467.0 hours Start 2025.09.04 @ 22:59:51 End 2025.09.06 @ 11:45:48 Sessions 7 Manual Loads 0 Difficulty Rogue Special Mode None Game No. 186 Rogue 186 Adventurer 0 Explorer 0 Win Type - Total 20 Types 12/1/3/2/0/1/0/1/0/0 Lore% 88 Gallery% 80 Achievement% 72 Wizard Run 0 Options --------- Layout 0 ASCII 0 Keyboard 1 Movement Numpad Keybinds 0 Fullscreen 2 Font 18/SmallcapsGlow Map View 76x50 Zoom Use 0% Tactical HUD 1 Map Filters NONE Filters NONE Steam 1 RUN: a0686e21-404c-48be-a3d5-8a95ded5231d